Cogmind - Beta 14 @@@ ROGUE MODE // 2024.08.22 @ 12:47:00 Player: lexi^-^ Result: Destroyed by G-50 Soldier with Heavy Laser Performance ------------- Evolutions (5) 2500 Regions Visited (13) 2600 Robots Destroyed (107) 535 Value Destroyed (6049) 6049 Prototype IDs (30) 600 Alien Tech Used (0) 0 Bonus (2987) 2987 TOTAL SCORE: 15271 Bonus ------- High Alert Combat Kills 805 Follower Combat Kills 456 Entered Garrisons 600 Used RIF Installer 1000 Aligned with FarCom 300 Friendly Fire -174 Cogmind --------- Core Integrity 0/1000 Matter 5/300 Energy 100/100 System Corruption 39% Temperature Cool (9) Movement Core (50) Location -5/Garrison Parts ------- > --- POWER (3) -------- (None) > --- PROPULSION (4) --- (None) > --- UTILITY (7) ------ (None) > --- WEAPON (3) ------- (None) > --- INVENTORY (5) ---- VSS Leg Launcher Loader Improved Reaction Control System Improved Heavy Laser Peak State ------------ > --- POWER ------------ Light Nuclear Core Light Nuclear Core Reinforced Deuterium Engine > --- PROPULSION ------- Light Treads Light Treads Armored Medium Treads Armored Medium Treads > --- UTILITY ---------- Improved Cooling System Lightpack 2.0 Hardened Heavy Armor Plating > --- WEAPON ----------- Improved Heavy Laser Flak Cannon Enhanced Gauss Cannon > --- INVENTORY -------- Fusion Compressor Light Treads Light Treads Aluminum Leg VSS Leg VSS Leg Armored Leg Improved Hover Unit Improved Cooling System Compact Battery Large Matter Pod Improved Sensor Array Advanced Terrain Scan Processor Advanced Targeting Computer Core Analyzer Precision Energy Filter Kinecellerator Launcher Loader Improved Weapon Cycler Advanced ECM Suite Improved Reaction Control System Weapon Shielding Hardened Light Armor Plating Hardened Light Armor Plating Improved Focal Shield Hacking Suite Advanced Hacking Suite System Shield Advanced System Restoration Module Improved Arc Projector Improved Arc Projector Gauss Cannon Improved Remote Datajack Improved Plasma Cutter Hammer Hammer Power Maul Power Sword [Rating: 95] Favorites ----------- Power Light Nuclear Core Engine Reinforced Deuterium Engine Power Core Light Nuclear Core Propulsion Carbon-fiber Leg Treads Light Treads Leg Carbon-fiber Leg Utility Lightpack 2.0 Device Improved Heat Sink Storage Lightpack 2.0 Processor Machine Analyzer Hackware Relay Coupler [Duelist] Protection Light Armor Plating Weapon Ion Cannon Energy Gun Small Laser Energy Cannon Ion Cannon Ballistic Gun Light Assault Rifle Ballistic Cannon Flak Cannon Launcher Heavy Rocket Launcher Special Weapon Remote Datajack Impact Weapon Power Maul Slashing Weapon Power Sword Build | -11 -10 -9 -9 -9 -8 -8 -8 -8 -8 -7 -6 -5 -5 ------- Run | Yrd Mat Mat Min Exi Min Mat Gar Mat Gar Fac Fac Fac Gar Slots Evolved 10 | . . 2 . . . 2 . . . 2 2 2 . Power 2 | . . . . . . . . . . . 1 1 . Propulsion 2 | . . . . . . . . . . 1 . 1 . Utility 5 | . . 1 . . . 2 . . . 1 1 . . Weapon 1 | . . 1 . . . . . . . . . . . Parts Attached 172 | 7 8 18 2 1 . 18 23 6 31 19 8 31 . Power 17 | 1 1 2 . . . 1 3 . 2 . 3 4 . Engine 4 | 1 . 1 . . . . . . . . 1 1 . Core 13 | . 1 1 . . . 1 3 . 2 . 2 3 . Reactor . | . . . . . . . . . . . . . . Propulsion 26 | 2 3 2 . . . 1 2 1 2 1 3 9 . Treads 8 | . . . . . . . . . . . . 8 . Leg 18 | 2 3 2 . . . 1 2 1 2 1 3 1 . Wheel . | . . . . . . . . . . . . . . Hover . | . . . . . . . . . . . . . . Flight . | . . . . . . . . . . . . . . Utility 52 | 1 1 5 . 1 . 3 1 3 12 12 2 11 . Device 18 | . 1 2 . . . 2 . . 1 6 1 5 . Storage 5 | 1 . . . 1 . . . . . . . 3 . Processor 1 | . . 1 . . . . . . . . . . . Hackware 12 | . . . . . . . . 3 9 . . . . Protection 16 | . . 2 . . . 1 1 . 2 6 1 3 . Artifact . | . . . . . . . . . . . . . . Weapon 77 | 3 3 9 2 . . 13 17 2 15 6 . 7 . Energy Gun 13 | 1 1 . . . . 2 2 . 3 1 . 3 . Energy Cannon 8 | . 1 . . . . 2 4 1 . . . . . Ballistic Gun 10 | 2 1 3 1 . . . . . 2 1 . . . Ballistic Cannon 21 | . . 2 1 . . 4 5 . 5 1 . 3 . Launcher 1 | . . . . . . . . . 1 . . . . Special Weapon 4 | . . . . . . . 1 . 2 . . 1 . Impact Weapon 18 | . . 4 . . . 5 5 1 2 1 . . . Slashing Weapon 2 | . . . . . . . . . . 2 . . . Piercing Weapon . | . . . . . . . . . . . . . . Special Melee Weapon . | . . . . . . . . . . . . . . Unidentified Prototypes 3 | . . 1 . . . . . . . . . 2 . Parts Lost 71 | . 2 . . . . 1 5 . 7 1 4 49 2 Power 11 | . 1 . . . . 1 1 . 2 . 1 5 . Propulsion 14 | . . . . . . . . . 2 . 2 10 . Utility 28 | . . . . . . . 1 . . 1 1 23 2 Weapon 18 | . 1 . . . . . 3 . 3 . . 11 . Highest Loss Streak 39 | . 1 . . . . 1 3 . 2 1 4 39 1 To Critical Strikes . | . . . . . . . . . . . . . . Average Slot Usage (%) 74 | . 94 99 99 88 77 76 80 81 79 81 86 74 5 Core 8 | . 10 10 11 11 11 9 8 9 8 7 13 9 . Treads 1 | . . . . . . . . . . . . 19 . Leg 16 | . 28 21 22 22 22 17 18 18 17 23 20 1 . Device 6 | . 10 10 11 4 . 5 9 . 2 12 20 5 4 Storage 8 | . 14 11 11 11 11 9 9 9 9 7 6 9 . Processor 1 | . . 11 11 6 . . . . . . . . . Hackware 2 | . . . . . . . . 14 12 . . . . Protection 4 | . . . . . . 9 9 3 2 7 6 4 . Energy Gun 3 | . 3 . . . . . 3 9 5 7 6 4 . Energy Cannon 6 | . 2 11 11 11 11 8 12 8 6 . . . . Ballistic Gun 5 | . 21 19 10 11 11 9 . . 2 3 . . . Ballistic Cannon 4 | . . 1 11 11 11 7 7 . 4 . . 8 . Special Weapon 1 | . . . . . . . . 9 5 . . . . Impact Weapon 1 | . . . . . . 1 2 . 2 6 6 . . Peak Build Rating 95 | 6 9 20 23 47 47 56 64 67 68 73 84 95 7 Average Rating 48 | 4 8 14 21 33 47 52 58 63 63 71 80 73 6 On Entrance 40 | . 6 9 18 23 47 47 56 64 67 62 73 81 11 Naked Turns 5 | . . . . . . . . . . . . . 5 Heaviest Build 77 | 12 15 23 24 24 23 30 32 26 51 39 39 77 3 Greatest Support 94 | 20 20 30 30 30 30 30 33 35 35 40 43 94 3 Greatest Overweight (x) 1 | . 1 1 . . . . 1 1 1 . . 1 . Average Overweight (x) . | . . . . . . . . . . . . . . Largest Inventory Capacity 40 | 8 8 8 8 40 40 40 40 40 40 40 40 40 5 Average Capacity 30 | 7 8 8 8 21 40 40 40 40 40 40 40 34 5 Most Carried 40 | 1 6 7 7 8 5 17 40 40 40 36 36 40 5 Average Carried 20 | . 3 5 7 6 5 8 30 39 33 33 34 28 5 Final Capacity 40 | 8 8 8 8 40 40 40 40 40 40 40 40 5 5 Final Carried 40 | 1 6 7 7 5 5 17 40 40 36 34 32 4 5 Class Distribution -------------------- 29% | Hauler-Skirmisher 13% | Mutant 13% | Hauler-Mutant 11% | Bothacker-Skirmisher 8% | Hauler-Gladiator 7% | Scavenger-Skirmisher 6% | Hauler-Tank 5% | Scavenger-Mutant 3% | Skirmisher Dominant Class ---------------- Scavenger-Mutant | -10/Materials Scavenger-Skirmisher | -9/Materials Skirmisher | -9/Mines Skirmisher | -9/Exiles Hauler-Skirmisher | -8/Mines Hauler-Skirmisher | -8/Materials Hauler-Skirmisher | -8/Garrison Bothacker-Skirmisher | -8/Materials Bothacker-Skirmisher | -8/Garrison Hauler-Gladiator | -7/Factory Hauler-Gladiator | -6/Factory Hauler-Tank | -5/Factory Mutant | -5/Garrison Resources | -11 -10 -9 -9 -9 -8 -8 -8 -8 -8 -7 -6 -5 -5 ----------- Run | Yrd Mat Mat Min Exi Min Mat Gar Mat Gar Fac Fac Fac Gar Matter Collected 3115 | 201 261 176 22 . 102 476 503 154 779 160 70 211 . Remotely . | . . . . . . . . . . . . . . Salvage Created 3705 | . 506 198 45 . 34 543 978 99 477 371 247 207 . Parts 204 | . 39 16 6 . 1 39 48 5 14 2 9 25 . Haulers Intercepted 3 | . 1 1 . . . . . 1 . . . . . Recyclers Shooed . | . . . . . . . . . . . . . . Parts Field Recycled . | . . . . . . . . . . . . . . Retrieved Matter . | . . . . . . . . . . . . . . Parts Self-Destructed . | . . . . . . . . . . . . . . Prevented . | . . . . . . . . . . . . . . Kills | -11 -10 -9 -9 -9 -8 -8 -8 -8 -8 -7 -6 -5 -5 ------- Run | Yrd Mat Mat Min Exi Min Mat Gar Mat Gar Fac Fac Fac Gar Combat Hostiles Destroyed 85 | . 13 8 4 . 1 9 26 . 9 5 6 4 . Melee 4 | . . . . . . . . . . 1 3 . . Guns 23 | . 11 4 . . . . 5 . 3 . . . . Cannons 48 | . 2 4 4 . 1 8 21 . 4 . . 4 . AOE 4 | . . . . . . . . . 1 . 3 . . Classes Destroyed 15 | . 5 1 . . 1 2 2 . 1 2 1 . . Worker 3 | . . . . . . . . . . 1 . 2 . Builder 5 | . . . . . . 1 . . . 2 . 2 . Hauler 3 | . 1 1 . . . . . 1 . . . . . Recycler 2 | . . . . . . 1 . . . . 1 . . Mechanic 2 | . 1 . . . . 1 . . . . . . . Operator 1 | . . . . . . . . . . 1 . . . Watcher 11 | . 3 . . . . 3 . 2 1 1 . 1 . Swarmer 20 | . 6 7 4 . . . 3 . . . . . . Grunt 38 | . 7 . . . . 8 12 . 8 3 . . . Brawler 4 | . . . . . . . 4 . . . . . . Sentry 7 | . . 1 . . . 1 3 . . 2 . . . Hunter 1 | . . . . . 1 . . . . . . . . Programmer 8 | . . . . . . . 4 . . . . 4 . Behemoth 1 | . . . . . . . . . 1 . . . . Assembled 6 | . . . . . . . . . . . 6 . . Thug 1 | . . . . . . . . . 1 . . . . Best Kill Streak 9 | . 4 4 4 . 1 3 9 3 3 3 7 6 . Combat Bots Only 9 | . 4 4 4 . 1 3 9 . 3 3 6 3 . Max Kills in Single Turn 3 | . 2 2 1 . 1 1 1 1 2 2 3 2 . Gunslinging 1 | . 1 . . . . . . . . . . . . Exploded 3 | . . . . . . . . . 1 . 3 . . Melee 1 | . . . . . . . . . . 1 1 . . Uniques/NPCs Destroyed . | . . . . . . . . . . . . . . Combat | -11 -10 -9 -9 -9 -8 -8 -8 -8 -8 -7 -6 -5 -5 -------- Run | Yrd Mat Mat Min Exi Min Mat Gar Mat Gar Fac Fac Fac Gar Hostile Shots Fired 611 | . 80 28 28 . 9 30 78 . 71 57 52 157 21 Missed 176 | . 22 11 4 . 2 11 22 . 18 27 21 33 5 Damage Taken 7781 | . 655 149 191 . 97 301 865 14 924 588 544 3122 331 Core 1616 | . 164 24 23 . 14 64 167 . 97 48 12 720 283 Absorbed by Shields 307 | . . . . . . . . . . . 180 118 9 Redirected to Shielding 67 | . . . . . . . . . . . . 67 . Regen/Repaired (Parts) 56 | . . . . . . 56 . . . . . . . Core Remaining (%) 74 | 100 34 . . . 84 . . . 40 93 98 . . Volleys Fired 297 | . 70 12 8 . 3 32 53 14 73 2 . 30 . Largest 3 | . 2 3 3 . 3 3 3 2 3 1 . 3 . Hottest 169 | . 80 124 124 . 137 137 169 125 146 40 . 166 . Shots Fired 678 | . 138 36 24 . 9 94 154 17 146 2 . 58 . Gun 309 | . 133 22 8 . 3 32 25 3 59 2 . 22 . Cannon 329 | . 5 14 16 . 6 62 129 3 61 . . 33 . Launcher 1 | . . . . . . . . . 1 . . . . Special 39 | . . . . . . . . 11 25 . . 3 . Kinetic 375 | . 121 24 16 . 6 62 58 . 55 . . 33 . Thermal 234 | . 17 12 8 . 3 32 96 6 46 2 . 12 . Explosive 1 | . . . . . . . . . 1 . . . . Electromagnetic 29 | . . . . . . . . . 19 . . 10 . Robot Hit Streak 13 | . 10 6 3 . 3 8 11 5 13 . . 6 . Robot Miss Streak 10 | . 4 5 10 . 9 9 8 3 5 2 . 7 . Penetration Max . | . . . . . . . . . . . . . . Secondary Targets 2 | . 2 . . . . . . . . . . . . Max Gunslinging Chain 1 | . 1 . . . . . . . . . . . . Shots Hit Robots 401 | . 93 17 10 . 4 52 85 11 73 18 7 31 . Core Hits 238 | . 32 11 7 . 5 45 67 3 23 1 8 36 . Critical Kills 4 | . . 1 . . . 1 . . 1 . 1 . . Critical Parts Destroyed 9 | . . . . . . 1 . 1 . 7 . . . Critical Strikes 21 | . . 1 . . . 2 1 2 2 7 1 5 . Burn 4 | . . . . . . . 1 1 . . . 2 . Meltdown 2 | . . . . . . 1 . . 1 . . . . Destroy 1 | . . 1 . . . . . . . . . . . Blast 4 | . . . . . . . . . 1 . . 3 . Smash 10 | . . . . . . 1 . 1 . 7 1 . . Melee Attacks 101 | . . 6 . . . 10 17 2 5 47 14 . . Impact 93 | . . 6 . . . 10 17 2 5 41 12 . . Slashing 8 | . . . . . . . . . . 6 2 . . Piercing . | . . . . . . . . . . . . . . Sneak Attacks 8 | . . 1 . . . 1 . 1 . 4 1 . . Combat Hostiles 1 | . . . . . . . . . . 1 . . . Follow-up Attacks 3 | . . . . . . . . . . 1 2 . . Damage Inflicted 8638 | . 814 289 130 . 64 1309 2061 166 1191 1025 789 800 . Guns 2019 | . 742 63 20 . 23 363 202 30 406 . . 170 . Cannons 4398 | . 72 153 110 . 36 829 1859 24 719 . . 596 . Explosions 419 | . . . . . . . . . 66 . 353 . . Melee 1763 | . . 73 . . . 117 . 112 . 1025 436 . . Ramming 39 | . . . . . 5 . . . . . . 34 . Kinetic 3553 | . 658 76 60 . 59 830 812 . 462 . . 596 . Thermal 2702 | . 156 140 70 . . 362 1249 54 519 . . 152 . Explosive 419 | . . . . . . . . . 66 . 353 . . Electromagnetic 162 | . . . . . . . . . 144 . . 18 . Impact 1656 | . . 73 . . . 117 . 112 . 978 376 . . Slashing 107 | . . . . . . . . . . 47 60 . . Piercing . | . . . . . . . . . . . . . . Highest Corruption 39 | . . . . . . . 3 3 3 3 . 39 39 Average Corruption 12 | . . . . . . . 2 3 3 3 . 10 39 Corruption Purged . | . . . . . . . . . . . . . . Corruption Blocked . | . . . . . . . . . . . . . . Effects 146 | . . . . . . . 13 6 41 4 . 20 62 Message Errors 48 | . . . . . . . 2 2 11 . . 5 28 Matter Fused 20 | . . . . . . . 3 1 6 . . 2 8 Heat Flow Errors 25 | . . . . . . . 2 2 7 . . 4 10 Energy Discharges 22 | . . . . . . . 5 1 1 2 . 5 8 Parts Rejected 1 | . . . . . . . . . 1 . . . . Data Loss (minor) 14 | . . . . . . . 1 . 6 1 . 1 5 Data Loss (major) 6 | . . . . . . . . . 3 1 . 1 1 Misfires 3 | . . . . . . . . . 3 . . . . Alerts 3 | . . . . . . . . . 2 . . . 1 Misdirections 3 | . . . . . . . . . . . . 2 1 Weapon Failures 1 | . . . . . . . . . 1 . . . . Overload Shots . | . . . . . . . . . . . . . . Overflow Damage 857 | . . 51 . . . 28 . 112 . 623 43 . . Projectiles 21 | . . . . . . . . . . 21 . . . Explosions 12 | . . . . . . . . . . . 12 . . Melee 824 | . . 51 . . . 28 . 112 . 602 31 . . Knockbacks 44 | . . . 1 . 3 12 11 . 2 8 . 7 . Impact 8 | . . . . . . . . . . 7 . 1 . Kinetic 35 | . . . 1 . 3 12 11 . 2 . . 6 . Secondary 1 | . . . . . . . . . . 1 . . . Self-Inflicted Damage 133 | . . . . . . . . . 13 . 114 6 . Shots 2 | . . . . . . . . . 1 . 1 . . Rammed 7 | . . . . . . . . . . . . 7 . Targets Rammed 10 | . . . . . 1 . . . . . . 9 . Kicked 1 | . . . . . 1 . . . . . . . . Crushed 2 | . . . . . . . . . . . . 2 . Highest Temperature 621 | . 180 280 459 . 195 243 373 165 397 5 . 621 200 Average Temperature 116 | . 37 96 232 . 94 67 99 57 132 5 . 159 87 Received Heat Transfer 1467 | . 342 . . . . 162 315 9 420 99 . . 120 Effects 36 | . . . 2 . . . 3 . 2 . . 29 . Shutdowns 11 | . . . 2 . . . . . 2 . . 7 . Energy Bleed 2 | . . . . . . . . . . . . 2 . Interference 8 | . . . . . . . 3 . . . . 5 . Short Circuit 2 | . . . . . . . . . . . . 2 . Damage (minor) 1 | . . . . . . . . . . . . 1 . Damage (major) 10 | . . . . . . . . . . . . 10 . Damage (core) 2 | . . . . . . . . . . . . 2 . Siege Activations . | . . . . . . . . . . . . . . Robots Corrupted 10 | . . 1 . . . . . 1 . 8 . . . Combat Hostiles 4 | . . . . . . . . . . 4 . . . Parts Fried 6 | . . . . . . . . 1 . 5 . . . Impact Corruptions 26 | . . 1 . . . 1 . 1 . 22 1 . . Robots Melted 2 | . . . . . . 1 . . 1 . . . . Combat Hostiles 2 | . . . . . . 1 . . 1 . . . . Parts Melted 7 | . 1 . . . . 1 4 . . . . 1 . Heat Transferred 4926 | . 348 296 148 . . 592 2109 185 915 . . 333 . Parts Sabotaged . | . . . . . . . . . . . . . . Parts Stolen . | . . . . . . . . . . . . . . Parts Stripped . | . . . . . . . . . . . . . . Power Chain Reactions . | . . . . . . . . . . . . . . Alert | -11 -10 -9 -9 -9 -8 -8 -8 -8 -8 -7 -6 -5 -5 ------- Run | Yrd Mat Mat Min Exi Min Mat Gar Mat Gar Fac Fac Fac Gar Peak Influence 1782 | . 208 248 143 . 30 188 1678 939 1782 988 434 90 136 Initial 935 | . . 87 53 . . . 124 817 603 935 434 14 31 Average 466 | . 131 74 135 . 18 66 864 857 1005 882 262 13 53 Maximum Alert Level 5 | . 1 1 . . . . 5 3 5 3 2 . . Low Security (%) 52 | 100 90 93 100 . 100 100 10 . . . 49 100 100 Level 1 2 | . 9 6 . . . . 8 . . . . . . Level 2 13 | . . . . . . . 26 . 38 . 50 . . Level 3 18 | . . . . . . . 19 100 21 100 . . . Level 4 11 | . . . . . . . 32 . 32 . . . . Level 5 1 | . . . . . . . 1 . 7 . . . . High Security . | . . . . . . . . . . . . . . Max Security . | . . . . . . . . . . . . . . Squads Dispatched 11 | . 2 3 . . . 2 . . . 1 . 3 . Investigation 4 | . 2 1 . . . 1 . . . . . . . Extermination 3 | . . . . . . . . . . 1 . 2 . Reinforcement 3 | . . 2 . . . . . . . . . 1 . Assault . | . . . . . . . . . . . . . . Garrison 1 | . . . . . . 1 . . . . . . . Intercept . | . . . . . . . . . . . . . . Searches Triggered . | . . . . . . . . . . . . . . Construction Impeded 2 | . . 1 . . . . . . . . . 1 . Haulers Reinforced . | . . . . . . . . . . . . . . Active Scanning Responses . | . . . . . . . . . . . . . . Cargo Convoy Interrupts . | . . . . . . . . . . . . . . Stealth | -11 -10 -9 -9 -9 -8 -8 -8 -8 -8 -7 -6 -5 -5 --------- Run | Yrd Mat Mat Min Exi Min Mat Gar Mat Gar Fac Fac Fac Gar Distress Signals 5 | . 1 1 . . . 1 . . 1 1 . . . Communications Jammed . | . . . . . . . . . . . . . . Distress Signals . | . . . . . . . . . . . . . . Times Spotted 168 | . 20 10 4 . 2 19 28 4 37 11 16 13 4 Peak Tracking Total 8 | . 6 4 4 . 1 4 8 2 6 4 7 4 3 Tactical Retreats 12 | . 1 . . . . 2 3 . 1 1 2 1 1 Traps | -11 -10 -9 -9 -9 -8 -8 -8 -8 -8 -7 -6 -5 -5 ------- Run | Yrd Mat Mat Min Exi Min Mat Gar Mat Gar Fac Fac Fac Gar Traps Triggered 27 | . 1 1 . . . 1 9 . 8 1 2 1 3 Indirectly . | . . . . . . . . . . . . . . Trap Hack Attempts . | . . . . . . . . . . . . . . Triggered . | . . . . . . . . . . . . . . Disarmed 6 | . 6 . . . . . . . . . . . . Reprogrammed . | . . . . . . . . . . . . . . Reused . | . . . . . . . . . . . . . . Traps Extracted . | . . . . . . . . . . . . . . Installed . | . . . . . . . . . . . . . . Triggered . | . . . . . . . . . . . . . . Machines | -11 -10 -9 -9 -9 -8 -8 -8 -8 -8 -7 -6 -5 -5 ---------- Run | Yrd Mat Mat Min Exi Min Mat Gar Mat Gar Fac Fac Fac Gar Machines Disabled 23 | . . 3 . . . 1 13 . 4 1 1 . . Max in Single Turn 2 | . . 1 . . . 1 2 . 1 1 1 . . Garrison Access 3 | . . . . . . . . . . 1 2 . . Garrison Relay 12 | . . . . . . . 8 . 3 . . . 1 Phase Generator 1 | . . . . . . . 1 . . . . . . Machines Repaired . | . . . . . . . . . . . . . . Machines Dismantled . | . . . . . . . . . . . . . . Machines Sabotaged . | . . . . . . . . . . . . . . Overloaded Fab Kills . | . . . . . . . . . . . . . . Hacking | -11 -10 -9 -9 -9 -8 -8 -8 -8 -8 -7 -6 -5 -5 --------- Run | Yrd Mat Mat Min Exi Min Mat Gar Mat Gar Fac Fac Fac Gar Machines Accessed 35 | . 6 5 . 1 . 3 4 1 4 5 3 3 . Terminals 24 | . 4 4 . . . 1 4 . 4 4 1 2 . Fabricators . | . . . . . . . . . . . . . . Repair Stations 1 | . . . . . . 1 . . . . . . . Recycling Units 2 | . 2 . . . . . . . . . . . . Scanalyzers 1 | . . 1 . . . . . . . . . . . Garrison Access 6 | . . . . . . 1 . 1 . 1 2 1 . Total Hacks 72 | . 14 13 . 1 . 8 7 2 9 8 6 4 . Successful 37 | . 6 8 . 1 . 4 1 2 4 4 4 3 . Failed 35 | . 8 5 . . . 4 6 . 5 4 2 1 . Catastrophic 8 | . 2 . . . . . 2 . 2 . 1 1 . Database Lockouts . | . . . . . . . . . . . . . . Manual 1 | . . . . 1 . . . . . . . . . Terminals 54 | . 11 10 . . . 3 7 . 9 7 4 3 . Fabricators . | . . . . . . . . . . . . . . Repair Stations 3 | . . . . . . 3 . . . . . . . Recycling Units 3 | . 3 . . . . . . . . . . . . Scanalyzers 3 | . . 3 . . . . . . . . . . . Garrison Access 8 | . . . . . . 2 . 2 . 1 2 1 . Terminal Hacks 25 | . 6 5 . 1 . 1 1 . 4 3 2 2 . Robot Schematic 1 | . . . . . . . . . . 1 . . . Prototype ID Bank 2 | . 1 1 . . . . . . . . . . . Open Door 1 | . . . . . . . . . 1 . . . . Branch Access Points 2 | . 1 1 . . . . . . . . . . . Emergency Access Points 2 | . . 1 . . . . . . 1 . . . . Alert Level 1 | . 1 . . . . . . . . . . . . Unreport Threat 2 | . . . . . . . . . . . 2 . . Locate Traps 3 | . 2 . . . . . . . . . . 1 . Disarm Traps 1 | . 1 . . . . . . . . . . . . Hauler Manifests 3 | . . 1 . . . 1 . . . . . 1 . Zone Layout 3 | . . 1 . . . . . . . 2 . . . Patrol Navigation 1 | . . . . . . . 1 . . . . . . Security Stations 2 | . . . . . . . . . 2 . . . . Derelict Proto ID Bank 1 | . . . . 1 . . . . . . . . . Fabricator Hacks . | . . . . . . . . . . . . . . Repair Station Hacks 2 | . . . . . . 2 . . . . . . . Scan Component 1 | . . . . . . 1 . . . . . . . Repair 1 | . . . . . . 1 . . . . . . . Recycling Unit Hacks . | . . . . . . . . . . . . . . Scanalyzer 3 | . . 3 . . . . . . . . . . . Insert Component 2 | . . 2 . . . . . . . . . . . Analyze 1 | . . 1 . . . . . . . . . . . Garrison Access Hacks 7 | . . . . . . 1 . 2 . 1 2 1 . Unlock Access 3 | . . . . . . 1 . 1 . . . 1 . Seal Access 3 | . . . . . . . . . . 1 2 . . Coupler Status 1 | . . . . . . . . 1 . . . . . Unauthorized Hacks . | . . . . . . . . . . . . . . Terminals . | . . . . . . . . . . . . . . Fabricators . | . . . . . . . . . . . . . . Repair Stations . | . . . . . . . . . . . . . . Recycling Units . | . . . . . . . . . . . . . . Scanalyzers . | . . . . . . . . . . . . . . Garrison Access . | . . . . . . . . . . . . . . Data Cores Recovered 1 | . . . . . . . . 1 . . . . . Used . | . . . . . . . . . . . . . . Hacking Detections 23 | . 5 4 . . . 2 4 1 2 3 1 1 . Full Trace Events 6 | . 2 1 . . . . 2 . 1 . . . . Feedback Events . | . . . . . . . . . . . . . . Feedback Blocked . | . . . . . . . . . . . . . . Robot Schematics Acquired 1 | . . . . . . . . . . 1 . . . Robots Built . | . . . . . . . . . . . . . . Authchips . | . . . . . . . . . . . . . . Time . | . . . . . . . . . . . . . . Total Robot Build Rating . | . . . . . . . . . . . . . . Part Schematics Acquired 1 | . . 1 . . . . . . . . . . . Parts Built . | . . . . . . . . . . . . . . Authchips . | . . . . . . . . . . . . . . Time . | . . . . . . . . . . . . . . Total Part Build Rating . | . . . . . . . . . . . . . . Parts Repaired 1 | . . . . . . 1 . . . . . . . Time 38 | . . . . . . 38 . . . . . . . Parts Recycled . | . . . . . . . . . . . . . . Recycled Matter . | . . . . . . . . . . . . . . Retrieved Matter . | . . . . . . . . . . . . . . Retrieved Components . | . . . . . . . . . . . . . . Parts Scanalyzed 1 | . . 1 . . . . . . . . . . . Part Schematics Acquired 1 | . . 1 . . . . . . . . . . . Parts Damaged . | . . . . . . . . . . . . . . Bothacking | -11 -10 -9 -9 -9 -8 -8 -8 -8 -8 -7 -6 -5 -5 ------------ Run | Yrd Mat Mat Min Exi Min Mat Gar Mat Gar Fac Fac Fac Gar Used RIF Installer 2 | . . . . . . . 1 . 1 . . . . Watcher Feeds 1 | . . . . . . . . . 1 . . . . Robots Hacked 21 | . . . . . . . . 6 15 . . . . Non-combat 4 | . . . . . . . . 4 . . . . . Combat 17 | . . . . . . . . 2 15 . . . . Robot Hacks Applied 22 | . . . . . . . . 7 15 . . . . parse_system 1 | . . . . . . . . . 1 . . . . map_earth 1 | . . . . . . . . 1 . . . . . link_fov 2 | . . . . . . . . 2 . . . . . go_dormant 1 | . . . . . . . . . 1 . . . . streamctrl_high 1 | . . . . . . . . . 1 . . . . formatsys_low 2 | . . . . . . . . 2 . . . . . formatsys_high 14 | . . . . . . . . 2 12 . . . . Relay Couplers Released 45 | . . . . . . . 27 . 13 . . . 5 Machine Destruction 45 | . . . . . . . 27 . 13 . . . 5 Attached 12 | . . . . . . . . 3 9 . . . . Fabnet Peak Effective % . | . . . . . . . . . . . . . . Robots Rewired . | . . . . . . . . . . . . . . Allies Hacked 1 | . . . . . . . 1 . . . . . . Hacks Repelled . | . . . . . . . . . . . . . . Allies | -11 -10 -9 -9 -9 -8 -8 -8 -8 -8 -7 -6 -5 -5 -------- Run | Yrd Mat Mat Min Exi Min Mat Gar Mat Gar Fac Fac Fac Gar Total Allies 19 | . . . . . . . 1 4 14 . . . . Largest Group 8 | . . . . . . . 1 2 8 . . . . Highest-Rated Group 135 | . . . . . . . 31 31 135 . . . . Highest-Rated Ally 31 | . . . . . . . 31 16 31 . . . . Total Orders 9 | . . . . . . . . . 9 . . . . STAY 7 | . . . . . . . . . 7 . . . . FOLLOW 2 | . . . . . . . . . 2 . . . . Ally Attacks 86 | . . . . . . . 6 6 74 . . . . Total Damage 1742 | . . . . . . . 102 134 1506 . . . . Kills 19 | . . . . . . . 2 1 16 . . . . Allies Corrupted . | . . . . . . . . . . . . . . Allies Melted 1 | . . . . . . . . . 1 . . . . Intel | -11 -10 -9 -9 -9 -8 -8 -8 -8 -8 -7 -6 -5 -5 ------- Run | Yrd Mat Mat Min Exi Min Mat Gar Mat Gar Fac Fac Fac Gar Robot Analysis Total . | . . . . . . . . . . . . . . Derelict Logs Recovered 1 | . . . 1 . . . . . . . . . . Drone Launches . | . . . . . . . . . . . . . . Drone Recoveries . | . . . . . . . . . . . . . . Exploration | -11 -10 -9 -9 -9 -8 -8 -8 -8 -8 -7 -6 -5 -5 ------------- Run | Yrd Mat Mat Min Exi Min Mat Gar Mat Gar Fac Fac Fac Gar Turns Passed 13299 | 60 746 1213 144 267 595 1155 2065 390 2440 1121 512 1116 1475 Spaces Moved 7216 | 44 407 454 97 220 349 655 1359 183 1623 709 387 665 64 Core 165 | 5 . . . . . . . . . . . 96 64 Treads 517 | . . . . . . . . . . . . 517 . Legs 6534 | 39 407 454 97 220 349 655 1359 183 1623 709 387 52 . Wheels . | . . . . . . . . . . . . . . Hover . | . . . . . . . . . . . . . . Flight . | . . . . . . . . . . . . . . Fastest Speed 50 | 50 120 120 120 120 120 120 120 120 120 110 100 50 50 Average Speed 120 | 112 120 121 120 120 120 120 120 123 124 110 108 140 50 Slowest Speed 240 | 120 190 190 120 120 120 120 190 190 195 110 110 240 50 Overloaded Moves . | . . . . . . . . . . . . . . Propulsion Burnouts . | . . . . . . . . . . . . . . Robots Hopped . | . . . . . . . . . . . . . . Cave-ins Triggered 4 | . . . . . . . . . . 1 . 3 . Exploration Rate (%) 38 | 3 67 31 24 61 70 38 94 19 80 17 7 18 9 Regions Visited 13 Branch Regions 3 Pre-discovered Areas . | . . . . . . . . . . . . . . Known Exits Taken 4 | . . 1 . . . 1 . 1 . . . 1 . Unknown Exits Taken 7 | 1 1 . 1 1 1 . . . . 1 1 . . Scrap Searched 1 | . . . . . 1 . . . . . . . . Spaces Dug 31 | . . 2 . . . 6 3 . . 18 . 2 . Terrain Destroyed 219 | . . 2 . . . 16 147 . 12 18 16 8 . Melee 29 | . . 2 . . . 6 3 . . 18 . . . Projectile 20 | . . . . . . 10 . . 2 . . 8 . AOE 170 | . . . . . . . 144 . 10 . 16 . . Terrain Rammed . | . . . . . . . . . . . . . . Walls Destroyed . | . . . . . . . . . . . . . . Machines Disabled . | . . . . . . . . . . . . . . Actions | -11 -10 -9 -9 -9 -8 -8 -8 -8 -8 -7 -6 -5 -5 --------- Run | Yrd Mat Mat Min Exi Min Mat Gar Mat Gar Fac Fac Fac Gar Total 11087 | 51 549 1079 107 224 518 929 1635 329 1921 989 460 788 1508 Wait 2994 | . 52 579 . . 166 194 110 120 113 188 43 30 1399 Move 7206 | 43 406 453 96 219 348 655 1358 183 1622 708 386 665 64 Hop . | . . . . . . . . . . . . . . Pick Up 130 | 1 7 4 . 1 . 17 34 3 22 17 8 16 . Fast Attach 41 | 6 7 6 1 1 . 2 4 1 4 1 1 7 . Attach 52 | . 1 2 . . . 3 5 . 15 11 6 9 . Detach 14 | . . . . . . 1 . . 1 8 . 3 1 Swap 79 | 1 . 10 1 . . 13 14 5 12 7 1 15 . Drop 51 | . 6 7 1 3 . 2 5 1 14 6 3 3 . Fire 297 | . 70 12 8 . 3 32 53 14 73 2 . 30 . Melee 93 | . . 6 . . . 10 17 2 5 41 12 . . Ram 5 | . . . . . . . . . . . . 5 . Kick 1 | . . . . . 1 . . . . . . . . Crush 5 | . . . . . . . . . . . . 5 . Escape Stasis 119 | . . . . . . . 35 . 40 . . . 44 Rewire . | . . . . . . . . . . . . . . Trap . | . . . . . . . . . . . . . . Miscellaneous . | . . . . . . . . . . . . . . Route ------- -11/Scrapyard -10/Materials (discovered 3 exits: *Mat x2 / Min) -9/Materials -9/Mines -9/Exiles -8/Mines -8/Materials -8/Garrison (discovered 3 exits: *Mat x3) -8/Materials -8/Garrison (discovered 3 exits: *Fac x3) -7/Factory (discovered 2 exits: *Fac / Low) -6/Factory -5/Factory (discovered 2 exits: [*Fac] / Gar) -5/Garrison History --------- Turn | Location | Event 3 | -11/Scrapyard | Discovered new exit (range 16) 61 | -11/Scrapyard | Entered Materials 287 | -10/Materials | Identified exit to Mines 486 | -10/Materials | Core integrity fell below 50% 511 | -10/Materials | Discovered new exit (range 11) 548 | -10/Materials | Build established: Scavenger-Mutant 653 | -10/Materials | Discovered new exit (range 14) 807 | -10/Materials | Entered another Materials area 807 | -9/Materials | Evolved 2 slots: Utility x1, Weapon x1 1114 | -9/Materials | Build established: Scavenger-Skirmisher 1740 | -9/Materials | Discovered new exit (range 16) 1866 | -9/Materials | Identified exit to Mines 2020 | -9/Materials | Entered Mines 2098 | -9/Mines | A weapon hastily lodged in a ceiling crevice suddenly fell to the ground 2158 | -9/Mines | Deemed a non-threat by the Exiles lab entrance 2159 | -9/Mines | Discovered new exit (range 5) 2164 | -9/Mines | Entered Exiles 2198 | -9/Exiles | Build established: Skirmisher 2199 | -9/Exiles | Met 8R-AWN 2219 | -9/Exiles | Met EX-HEX 2255 | -9/Exiles | Met EX-BIN 2270 | -9/Exiles | Aligned with FarCom system 2271 | -9/Exiles | Given EX-Vault access code 2305 | -9/Exiles | Opened EX-Vault 2316 | -9/Exiles | Found Lightpack 2.0 2342 | -9/Exiles | Warned to stay clear of 0b10 Research branches 2374 | -9/Exiles | Met EX-DEC 2418 | -9/Exiles | Discovered new exit (range 12) 2431 | -9/Exiles | Left Exiles lab with Lightpack 2.0 2431 | -9/Exiles | Entered Mines 2717 | -8/Mines | Build established: Hauler-Skirmisher 3014 | -8/Mines | Discovered new exit (range 11) 3026 | -8/Mines | Entered Materials 3026 | -8/Materials | Evolved 2 slots: Utility x2 3271 | -8/Materials | Repaired Carbon-fiber Leg 4023 | -8/Materials | Garrison activated, responded to threat 4181 | -8/Materials | Identified exit to Garrison 4181 | -8/Materials | Entered Garrison 4327 | -8/Garrison | Triggered checkpoint 4459 | -8/Garrison | Destroyed 9 combat bots 4569 | -8/Garrison | Triggered checkpoint 4599 | -8/Garrison | Garrison Relay disabled 4703 | -8/Garrison | Triggered checkpoint 4766 | -8/Garrison | Discovered new exit (range 12) 4853 | -8/Garrison | Garrison Relay disabled 4956 | -8/Garrison | Discovered new exit (range 14) 5015 | -8/Garrison | Triggered checkpoint 5101 | -8/Garrison | Triggered checkpoint 5140 | -8/Garrison | Rescued a captive Derelict 5156 | -8/Garrison | Garrison Relay disabled 5311 | -8/Garrison | Discovered new exit (range 10) 5385 | -8/Garrison | Lost 3 parts (1p1u1w) 5395 | -8/Garrison | Garrison Relay disabled 5554 | -8/Garrison | Phase Generator disabled 5574 | -8/Garrison | Garrison Relay disabled 5658 | -8/Garrison | Garrison Relay disabled 5665 | -8/Garrison | Garrison Relay disabled 5673 | -8/Garrison | Garrison Relay disabled 5883 | -8/Garrison | Triggered checkpoint 6166 | -8/Garrison | Installed Relay Interface Framework 6246 | -8/Garrison | Entered Materials 6476 | -8/Materials | Build established: Bothacker-Skirmisher 6636 | -8/Materials | Identified exit to Garrison 6636 | -8/Materials | Entered Garrison 6636 | -8/Garrison | Accompanied by 2 allies 6655 | -8/Garrison | Expanded RIF knowledge: Watcher Feeds 6680 | -8/Garrison | Triggered checkpoint 6740 | -8/Garrison | Garrison Relay disabled 6784 | -8/Garrison | Rescued a captive Derelict 7042 | -8/Garrison | Triggered checkpoint 7560 | -8/Garrison | Triggered checkpoint 7560 | -8/Garrison | Triggered checkpoint 7596 | -8/Garrison | Triggered checkpoint 7597 | -8/Garrison | Lost 4 allies 7690 | -8/Garrison | Triggered checkpoint 7706 | -8/Garrison | Triggered checkpoint 7732 | -8/Garrison | Discovered new exit (range 15) 7860 | -8/Garrison | Garrison Relay disabled 7978 | -8/Garrison | Discovered new exit (range 10) 8089 | -8/Garrison | Discovered new exit (range 10) 8143 | -8/Garrison | Build established: Hauler-Mutant 8162 | -8/Garrison | Learned Factory security intel 8230 | -8/Garrison | Core integrity fell below 50% 8452 | -8/Garrison | Spotted B-75 Beast 8483 | -8/Garrison | Destroyed B-75 Beast 8491 | -8/Garrison | Lost 6 allies 8680 | -8/Garrison | Triggered checkpoint 8717 | -8/Garrison | Garrison Relay disabled 8771 | -8/Garrison | Build established: Hauler-Skirmisher 8808 | -8/Garrison | Triggered checkpoint 8892 | -8/Garrison | Learned Factory security intel 9076 | -8/Garrison | Entered Factory 9076 | -7/Factory | Evolved 2 slots: Propulsion x1, Utility x1 9077 | -7/Factory | Identified exit to Lower Caves 9375 | -7/Factory | Build established: Hauler-Mutant 9884 | -7/Factory | Build established: Hauler-Gladiator 9926 | -7/Factory | Crushed by falling debris 10185 | -7/Factory | Discovered new exit (range 11) 10197 | -7/Factory | Entered another Factory area 10197 | -6/Factory | Evolved 2 slots: Power x1, Utility x1 10407 | -6/Factory | Discovered new exit (range 12) 10634 | -6/Factory | Assembled infested ambush trap array 10702 | -6/Factory | Lost 4 parts (1p2n1u) 10709 | -6/Factory | Entered another Factory area 10709 | -5/Factory | Evolved 2 slots: Power x1, Propulsion x1 11055 | -5/Factory | Build established: Hauler-Tank 11157 | -5/Factory | Discovered new exit (range 10) 11520 | -5/Factory | Found Launcher Loader 11641 | -5/Factory | System corruption reached 10% 11652 | -5/Factory | Crushed by falling debris 11653 | -5/Factory | Crushed by falling debris 11659 | -5/Factory | Crushed by falling debris 11659 | -5/Factory | System corruption reached 30% 11690 | -5/Factory | Lost 39 parts (2p7n21u9w) 11705 | -5/Factory | Core integrity fell below 50% 11802 | -5/Factory | Lost 10 parts (3p3n2u2w) 11825 | -5/Factory | Identified exit to Garrison 11825 | -5/Factory | Entered Garrison 11867 | -5/Garrison | Spotted B-75 Beast 11883 | -5/Garrison | Core integrity fell below 20% 12017 | -5/Garrison | Build established: Mutant 13290 | -5/Garrison | Garrison Relay disabled 13300 | -5/Garrison | Destroyed by G-50 Soldier with Heavy Laser Last Messages --------------- 13153_ >,O=VMQ#L92WAK1XC%E/YN3XUAY 13169_ System corrupted: Heat flow error (+188). 13184_ System corrupted: Energy discharge (-24). 13199_ Z327G=/H6US>S:T=IADRX&|FS:/8=1K#WQO 13222_ JC2ZTFZX GC&BNQEROYU 13274_ System corrupted: IFF burst signal emitted. 13290_ Garrison Relay disabled. 13290_ Relay Coupler [Sentry] tumbles out of relay unit. 13290_ Unknown Hackware tumbles out of relay unit. 13290_ Relay Coupler [Duelist] tumbles out of relay unit. 13290_ Relay Coupler [NC] tumbles out of relay unit. 13290_ Relay Coupler [Grunt] tumbles out of relay unit. 13293_ System corrupted: Heat flow error (+221). 13295_ Imp. Cooling System destroyed. Map ----- +----------------------------------------------------+ | ???????????????????????????????????????????????? | | ???????????????????????????????????????????????? | | ???????????????????????????????????????????????? | | ???????????????????????????????????????????????? | | ??????????????????????????????????######???????? | | ??????????????????????????????????# #???????? | | ????????????""""??????????????????# #???????? | | ????????????"?????????????????????# #???????? | | ????????????""""??????????????????### #???????? | | ????????????????????????????????????# #???????? | | ????????????????????????????????????# #???????? | | ????????????????????????????????????# #???????? | | ?????????????????????################ #???????? | | ?????????????????????# ########? | | ?????????????????????# ############## #? | | ?????????????????????# #????????????# #? | | ?????????????????????# #????????????######## #? | | ?????????????????????# #???????????????????# #? | | ?????????????????????# #???????????????????# %#? | | ?????????????????????" #???????????????????# #? | | ?????????????????????" #???????????????????# #? | | ?????????????????????" #???????????????????# #? | | ?????????????????????# #???????????????????#% #? | | ?????????????????????#Y###?????????????????# #? | | ?????????????????????#g#"#????????????????? ? | | ?????????????????????#g@"#????????????????? | | ?????????????????????#!!"#????????????????# | | ?????????????????????#!! #????????????????#^ ## | | ?????????????????????#!#"#????????????????# #? | | ?????????????????????#####????????????????" ? | | ??????????????????????????????????????????" ? | | ??????????????????????????????????????????" ? | | ??????????????????????????????????????????" ? | | ??????????????????????????????????????????# #? | | ??????????????????????????????????????????# ?? | | ??????????????????????????????????????????? ?? | | ??????????????????????????????????????????? ?? | | ???????????????????????????????????????????????? | | ???????????????????????????????????????????????? | | ???????????????????????????????????????????????? | | ???????????????????????????????????????????????? | | ???????????????????????????????????????????????? | | ???????????????????????????????????????????????? | | ???????????????????????????????????????????????? | | ???????????????????????????????????????????????? | | ???????????????????????????????????????????????? | | ???????????????????????????????????????????????? | | ???????????????????????????????????????????????? | | ???????????????????????????????????????????????? | | ???????????????????????????????????????????????? | +----------------------------------------------------+ Best States ------------- Heat Dissipation 67 Energy Generation 34 Energy Capacity 690 Matter Stores 300 Matter Capacity 350 Sight Range 16 Robot Scan Range 14 Terrain Scan Density 10 Armor Coverage 600 Weapon Shielding 33 Melee Speed Boost 20 Evasion (%) 65 Recoil Reduction 4 Relay Coupler Types 2 Relay Coupler Value 42 Authchip Count 3 Item Schematics ----------------- Carbon-fiber Leg | -9/Materials | Scanalyzed Robot Schematics ------------------ W-25 Informer | -7/Factory | Hacked Fabricated ------------ Nothing Alien Tech Used ----------------- None Achievements -------------- Packrat Challenges ------------ None Game ------ Seed WarlordBoreFilter Manual? 0 Play Time 02:20:26 Cumulative 71.9 hours Start 2024.08.21 @ 21:24:49 End 2024.08.22 @ 12:47:00 Sessions 3 Manual Loads 0 Difficulty Rogue Special Mode None Game No. 44 Rogue 34 Adventurer 10 Explorer 0 Win Type - Total 0 Types 0/0/0/0/0/0/0/0/0 Lore% 14 Gallery% 39 Achievement% 28 Wizard Run 0 Options --------- Layout 1 ASCII 0 Keyboard 0 Movement Mouse Keybinds 0 Fullscreen 2 Font 24/Smallcaps Map View 50x35 Zoom Use 0% Tactical HUD 1 Map Filters NONE Filters NONE Steam 1 RUN: cf92afdc-e81f-44b6-809a-13370b12d942